bitfinex-derivatives/quotes_SOLF0:USTF0_20241010
["timestamp","ask_amount","ask_price","bid_price","bid_amount"]
[1728569106457,0.12502,138.23,138.19,6.38]
[1728569106659,0.12502,138.23,138.2,1.4162]
[1728569107362,0.12502,138.23,138.21,3.6211]
[1728569107560,0.12502,138.23,138.2,1.4162]
[1728569108167,0.12502,138.23,138.22,3.6208]
[1728569108467,0.12502,138.23,138.2,1.4162]
[1728569108672,0.12502,138.23,138.19,6.38]
[1728569108854,27.74,138.22,138.18,1.3831]
[1728569109055,3.6216,138.19,138.18,1.3831]
[1728569109266,3.6216,138.19,138.16,1.4162]
[1728569109267,27.74,138.22,138.16,1.4162]
[1728569110165,3.6215,138.2,138.16,5.0384]
[1728569110465,27.74,138.22,138.16,1.4162]
[1728569111268,3.6213,138.21,138.16,5.0385]
[1728569111568,27.74,138.22,138.16,5.0385]
[1728569111859,3.6218,138.19,138.16,1.4162]
[1728569112057,27.74,138.22,138.16,1.4162]
[1728569112257,3.6224,138.16,138.13,7.8085]
[1728569112459,3.6224,138.16,138.13,11.4315]
[1728569112667,27.74,138.17,138.11,0.12502]
[1728569112858,3.6234,138.12,138.11,0.12502]
[1728569113058,27.74,138.15,138.11,0.12502]
[1728569113458,3.6234,138.12,138.11,0.12502]
[1728569114053,27.74,138.13,138.11,0.12502]
[1728569114668,3.6234,138.12,138.11,0.12502]
[1728569116063,31.3633,138.13,138.11,0.12502]
[1728569116659,3.6229,138.14,138.11,3.74852]
[1728569116863,27.74,138.15,138.11,0.12502]
[1728569117259,3.6233,138.13,138.11,0.12502]
[1728569117464,27.74,138.15,138.11,0.12502]
[1728569118057,27.74,138.15,138.05,78.34502]
[1728569118058,27.74,138.13,138.05,0.12502]
[1728569118268,10.08174293,138.16,138.05,0.12502]
[1728569118269,3.6247,138.08,138.05,0.12502]
[1728569118566,27.74,138.1,138.05,0.12502]
[1728569118965,3.6246,138.08,138.05,0.12502]
[1728569119473,27.74,138.1,138.05,0.12502]
[1728569119670,3.625,138.07,138.05,0.12502]
[1728569120470,3.625,138.06,138.05,0.12502]
[1728569122073,27.74,138.06,138.0,1.4446]
[1728569122966,27.74,138.03,137.99,0.12502]
[1728569123365,3.6264,138.01,137.99,0.12502]
[1728569123775,34.18,138.03,137.99,0.12502]
[1728569123981,3.6266,138.0,137.99,0.12502]
[1728569124370,27.74,138.01,137.93,0.12502]
[1728569124576,3.6282,137.94,137.93,0.12502]
[1728569124975,27.74,137.95,137.87,6.56502]
[1728569125275,27.74,137.95,137.89,3.6295]
[1728569125471,34.30502,137.99,137.88,27.74]
[1728569125666,34.30502,137.99,137.89,6.44]
[1728569125870,6.56502,137.99,137.95,3.6278]
[1728569126178,0.12502,137.99,137.93,6.44]
[1728569126476,0.12502,137.99,137.94,3.6281]
[1728569126672,27.86502,137.99,137.9,6.44]
[1728569126868,3.6278,137.96,137.9,6.44]
[1728569127167,27.86502,137.99,137.9,6.44]
[1728569127368,3.6275,137.97,137.9,6.44]
[1728569127568,27.86502,137.99,137.92,3.6287]
[1728569127777,27.86502,137.99,137.9,6.44]
[1728569127778,3.6279,137.95,137.9,6.44]
[1728569128069,27.74,137.97,137.9,10.069]
[1728569128272,3.75212,137.99,137.9,6.44]
[1728569128571,0.12502,137.99,137.9,6.44]
[1728569128771,27.74,137.98,137.9,6.44]
[1728569129074,3.6281,137.95,137.9,6.44]
[1728569129276,27.74,137.96,137.87,0.12502]
[1728569129474,3.629,137.91,137.87,0.12502]
[1728569129672,27.74,137.93,137.87,3.75482]
[1728569129874,27.74,137.93,137.87,0.12502]
[1728569130580,3.6292,137.91,137.87,0.12502]
[1728569130780,3.6292,137.91,137.87,3.75492]
[1728569131280,3.6288,137.92,137.89,3.6293]
[1728569131479,3.6288,137.92,137.87,0.12502]
[1728569131776,3.6297,137.88,137.87,0.12502]
[1728569132373,3.6307,137.85,137.82,2.8268]
[1728569132974,3.6307,137.85,137.82,6.4581]
[1728569133174,3.6307,137.85,137.82,2.8268]
[1728569133987,3.6308,137.84,137.82,1.4415]
[1728569134377,3.6308,137.84,137.81,0.12502]
[1728569134979,27.74,137.89,137.81,0.12502]
[1728569135189,27.74,137.91,137.81,6.58502]
[1728569135385,0.12502,137.93,137.83,27.86518]
[1728569135580,0.12502,137.93,137.84,2.9091]
[1728569135780,0.12502,137.93,137.85,6.46]
[1728569136084,3.6291,137.91,137.85,6.46]
[1728569136280,0.12502,137.93,137.86,1.3445]
[1728569136480,0.12502,137.93,137.86,46.6645]
[1728569136876,0.12502,137.93,137.89,3.6294]
[1728569137072,0.12502,137.93,137.86,46.6645]
[1728569137585,3.75352,137.93,137.86,46.6645]
[1728569138383,3.75352,137.93,137.9,3.6292]
[1728569138885,0.12502,137.93,137.86,46.6645]
[1728569139485,3.75342,137.93,137.9,3.6291]
[1728569139787,0.12502,137.93,137.86,1.3445]
[1728569139980,3.629,137.91,137.87,3.6298]
[1728569140177,3.629,137.91,137.86,1.3445]
[1728569140382,0.12502,137.93,137.86,1.3445]
[1728569141090,0.12502,137.93,137.87,45.32]
[1728569141388,0.12502,137.93,137.91,3.6288]
[1728569141592,0.12502,137.93,137.87,45.32]
[1728569141979,0.12502,137.93,137.86,1.3445]
[1728569142485,3.75352,137.93,137.91,3.6289]
[1728569142789,0.12502,137.93,137.91,3.6289]
[1728569143289,0.12502,137.93,137.91,3.6287]
[1728569144795,3.75342,137.93,137.9,3.6291]
[1728569146889,0.12502,137.93,137.9,3.6291]
[1728569147192,3.6287,137.92,137.9,3.6291]
[1728569148288,0.12502,137.93,137.87,6.64]
[1728569148491,3.75352,137.93,137.91,3.6289]
[1728569148688,3.75352,137.93,137.87,6.64]
[1728569148689,0.12502,137.93,137.87,6.64]
[1728569148893,0.12502,137.93,137.92,3.6287]
[1728569149089,0.12502,137.93,137.87,6.64]
[1728569149492,0.12502,137.93,137.91,3.6287]
[1728569150195,0.12502,137.93,137.92,3.6287]
[1728569151083,3.6291,137.91,137.88,3.6295]
[1728569151393,3.6291,137.91,137.87,6.64]
[1728569151692,3.75352,137.93,137.9,3.629]
[1728569152194,0.12502,137.93,137.92,3.6287]
[1728569152785,0.12502,137.99,137.91,51.96]
[1728569152983,0.12502,137.99,137.92,1.3902]
[1728569153392,3.75202,137.99,137.94,3.6279]
[1728569153691,3.75202,137.99,137.93,1.4571]
[1728569153692,0.12502,137.99,137.93,1.4571]
[1728569154089,3.6278,137.96,137.93,3.6284]
[1728569154395,0.12502,137.99,137.92,1.3902]
[1728569154897,0.12502,137.99,137.93,3.6283]
[1728569155283,3.6276,137.96,137.94,3.628]
[1728569155589,0.12502,137.99,137.92,1.3902]
[1728569155790,3.75192,137.99,137.96,3.6274]
[1728569156195,0.12502,137.99,137.92,1.3902]
[1728569156395,0.12502,137.99,137.97,3.6273]
[1728569156798,0.12502,137.99,137.92,1.3902]
[1728569156993,3.75192,137.99,137.96,3.6274]
[1728569157189,0.12502,137.99,137.95,51.96]
[1728569157398,0.12502,137.99,137.96,1.4557]
[1728569158300,0.12502,137.99,137.95,6.64]
[1728569158994,3.6273,137.98,137.95,3.6278]
[1728569159207,0.12502,137.99,137.94,8.1069]
[1728569159588,3.6272,137.98,137.95,3.6278]
[1728569159900,0.12502,137.99,137.95,3.6278]
[1728569160202,0.12502,137.99,137.94,1.4669]
[1728569163294,27.87,137.98,137.92,1.3902]
[1728569164409,27.87,137.98,137.92,5.0188]
[1728569164587,27.87,137.98,137.9,6.62]
[1728569164998,27.87,137.98,137.88,4.1346]
[1728569164999,0.12502,137.99,137.88,2.7148]
[1728569165202,27.87,137.93,137.87,0.12502]
[1728569165504,27.87,137.91,137.87,0.12502]
[1728569165897,3.6297,137.88,137.87,0.12502]
[1728569166604,34.51,137.88,137.83,0.12518]
[1728569166792,27.87,137.86,137.83,0.12518]
[1728569167188,6.64,137.88,137.64,0.12518]
[1728569167189,27.87,137.84,137.64,0.12518]
[1728569167391,27.87,137.82,137.7,1.4388]
[1728569167602,27.87,137.79,137.7,2.8714]
[1728569167907,6.64,137.78,137.7,2.8714]
[1728569168106,27.87,137.77,137.7,2.8714]
[1728569168311,3.6329,137.76,137.7,2.8714]
[1728569168508,27.87,137.79,137.7,2.8714]
[1728569168806,6.64,137.78,137.7,2.8714]
[1728569169406,10.2724,137.78,137.73,3.6337]
[1728569169702,27.87,137.81,137.7,2.8714]
[1728569170004,6.64,137.8,137.72,27.87]
[1728569170196,6.64,137.81,137.72,27.87]
[1728569170399,3.6322,137.79,137.74,3.6332]
[1728569170596,6.64,137.81,137.72,27.87]
[1728569170997,3.6313,137.82,137.77,3.6326]
[1728569171200,6.64,137.83,137.76,1.4195]
[1728569171406,6.64,137.83,137.77,1.3363]
[1728569172005,27.87,137.82,137.76,1.4195]
[1728569172205,3.6324,137.79,137.75,0.12502]
[1728569172395,10.2724,137.79,137.75,0.12502]
[1728569172599,6.64,137.79,137.75,0.12502]
[1728569172801,34.51,137.79,137.75,0.12502]
[1728569173195,3.6326,137.78,137.75,0.12502]
[1728569173396,34.51,137.79,137.75,0.12502]
[1728569174198,3.6329,137.76,137.75,0.12502]
[1728569175597,3.6338,137.73,137.69,5.18642]
[1728569175811,6.64,137.74,137.69,1.55182]
[1728569176498,6.64,137.76,137.69,1.55182]
[1728569176696,27.87,137.79,137.69,1.55182]
[1728569176896,6.64,137.76,137.69,1.55182]
[1728569177097,3.6332,137.75,137.71,3.6342]
[1728569177604,6.64,137.76,137.69,1.55182]
[1728569177800,6.72,137.77,137.69,1.55182]
[1728569178199,3.6333,137.75,137.71,3.634]
[1728569178403,6.72,137.77,137.71,3.634]
[1728569178598,6.72,137.77,137.69,0.12502]
[1728569178806,34.59,137.77,137.69,0.12502]
[1728569179404,6.72,137.76,137.69,0.12502]
[1728569179815,3.6336,137.74,137.69,3.75952]
[1728569180110,6.72,137.76,137.69,0.12502]
[1728569181409,3.6333,137.75,137.69,0.12502]
[1728569181808,6.74,137.77,137.69,0.12502]
[1728569182508,31.55725863,137.8,137.7,6.74]
[1728569182704,31.48575183,137.8,137.7,6.74]
[1728569182905,27.87,137.8,137.7,6.74]
[1728569183316,31.43887424,137.8,137.7,6.74]
[1728569183610,3.633,137.76,137.7,6.74]
[1728569184002,0.12502,137.81,137.73,27.87]
[1728569184201,0.12502,137.81,137.74,10.908]
[1728569184713,3.632,137.8,137.76,3.6329]
[1728569184914,0.12502,137.81,137.76,3.6329]
[1728569185101,3.6321,137.79,137.76,3.6329]
[1728569185410,0.12502,137.81,137.78,3.6323]
[1728569185713,0.12502,137.81,137.74,10.908]
[1728569186014,0.12502,137.81,137.8,3.6318]
[1728569187408,0.12502,137.81,137.79,3.6319]
[1728569187811,0.12502,137.81,137.74,10.908]
[1728569188016,0.12502,137.81,137.8,3.6318]
[1728569190519,0.12502,137.87,137.78,34.59]
[1728569190814,0.12502,137.87,137.8,27.87]
[1728569191016,0.12502,137.87,137.86,3.6303]
[1728569192213,0.12502,137.87,137.81,9.5418]
[1728569192409,0.12502,137.87,137.81,2.8218]
[1728569192610,3.6311,137.83,137.8,3.6317]
[1728569192812,6.84502,137.87,137.77,6.72]
[1728569193014,34.71502,137.87,137.77,6.72]
[1728569193220,34.71502,137.87,137.81,3.6315]
[1728569193817,3.6307,137.85,137.81,3.6315]
[1728569194117,34.71502,137.87,137.8,3.6317]
[1728569194513,3.6311,137.83,137.8,3.6317]
[1728569194710,34.71502,137.87,137.77,6.72]
[1728569195123,3.6308,137.84,137.77,6.72]
[1728569195618,3.6308,137.84,137.77,8.1123]
[1728569195813,34.71502,137.87,137.77,8.1123]
[1728569195814,3.6307,137.85,137.77,8.1123]
[1728569196014,3.6307,137.85,137.81,3.6313]
[1728569196215,34.71502,137.87,137.81,3.6313]
[1728569196717,3.6309,137.84,137.81,3.6313]
[1728569197717,3.6309,137.84,137.77,8.1123]
[1728569197718,3.631,137.84,137.79,3.6319]
[1728569197922,3.631,137.84,137.77,8.1123]
[1728569198124,34.71502,137.87,137.77,8.1123]
[1728569198313,3.6307,137.85,137.82,3.6312]
[1728569199718,3.6309,137.84,137.81,3.6314]
[1728569199918,3.6963632,137.86,137.77,8.1123]
[1728569200123,34.71502,137.87,137.77,8.1123]
[1728569200327,3.631,137.84,137.8,3.6317]
[1728569200526,3.64841981,137.85,137.77,8.1123]
[1728569200718,34.71502,137.87,137.77,8.1123]
[1728569201023,27.87,137.84,137.76,2.7186]
[1728569201226,3.63752358,137.83,137.76,2.7186]
[1728569201415,3.6316,137.81,137.78,3.6323]
[1728569201612,3.63752358,137.83,137.76,2.7186]
[1728569201817,27.87,137.82,137.76,2.7186]
[1728569202012,27.87,137.82,137.77,3.6324]
[1728569202013,3.632,137.8,137.77,3.6324]
[1728569202415,31.46866037,137.82,137.76,2.7186]
[1728569202929,31.46866037,137.82,137.75,0.12502]
[1728569203427,27.87,137.8,137.75,0.12502]
[1728569203726,3.6329,137.76,137.75,0.12502]
[1728569204230,6.72,137.79,137.75,0.12502]
[1728569204416,3.6327,137.77,137.75,0.12502]
[1728569204913,10.3522,137.79,137.76,3.6327]
[1728569205824,3.6322,137.79,137.76,3.6327]
[1728569206317,6.72,137.8,137.75,0.12502]
[1728569206624,6.72,137.82,137.75,0.12502]
[1728569207023,27.87,137.84,137.75,0.12502]
[1728569207024,31.44671887,137.84,137.75,0.12502]
[1728569207218,6.74,137.83,137.75,0.12502]
[1728569207728,6.74,137.83,137.78,3.6322]
[1728569208120,3.6319,137.8,137.77,3.6325]
[1728569208325,3.6319,137.8,137.75,0.12502]
[1728569208825,3.6321,137.79,137.75,0.12502]
[1728569209029,34.61,137.83,137.75,0.12502]
[1728569209417,3.6319,137.8,137.75,0.12502]
[1728569209823,34.61,137.83,137.75,0.12502]
[1728569210026,3.6324,137.78,137.75,0.12502]
[1728569210219,6.74,137.83,137.75,0.12502]
[1728569210523,3.6327,137.77,137.75,0.12502]
[1728569210719,6.74,137.83,137.75,0.12502]
[1728569211123,3.6329,137.76,137.75,0.12502]
[1728569215027,31.42958738,137.77,137.69,0.12502]
[1728569215230,3.6345,137.7,137.69,0.12502]
[1728569215431,3.55958738,137.77,137.69,0.12502]
[1728569215630,27.87,137.78,137.69,0.12502]
[1728569215827,3.6345,137.7,137.69,0.12502]
[1728569216027,27.87,137.78,137.69,0.12502]
[1728569216845,3.6331,137.76,137.69,0.12502]
[1728569217138,6.74,137.79,137.69,0.12502]
[1728569217441,3.6333,137.75,137.7,27.87]
[1728569217640,6.74,137.79,137.71,6.74]
[1728569217832,6.74,137.79,137.69,0.12502]
[1728569217833,3.6341,137.72,137.69,0.12502]
[1728569218037,3.58476038,137.77,137.69,0.12502]
[1728569218237,27.87,137.78,137.69,0.12502]
[1728569218437,3.6345,137.7,137.69,0.12502]
[1728569221233,34.61,137.71,137.64,0.12518]
[1728569221437,3.6358,137.65,137.64,0.12518]
[1728569221654,3.84024763,137.75,137.64,0.12518]
[1728569221944,31.71024763,137.75,137.64,27.99518]
[1728569222137,31.71024763,137.75,137.64,0.12518]
[1728569222331,27.87,137.73,137.64,0.12518]
[1728569222743,27.87,137.71,137.64,0.12518]
[1728569222947,3.6358,137.65,137.64,0.12518]
[1728569223335,6.74,137.66,137.63,0.12502]
[1728569223532,3.6361,137.64,137.63,0.12502]
[1728569223739,34.61,137.66,137.58,1.3578]
[1728569223939,3.6377,137.58,137.57,0.12502]
[1728569224137,6.74,137.59,137.51,0.12502]
[1728569224451,3.6392,137.52,137.51,0.12502]
[1728569225146,7.14,137.52,137.51,0.12502]
[1728569225551,10.7792,137.52,137.51,0.12502]
[1728569225844,7.14,137.52,137.46,2.869]
[1728569226234,35.01,137.52,137.4,1.4374]
[1728569226441,27.87,137.49,137.4,1.4374]
[1728569226640,7.14,137.48,137.39,0.12502]
[1728569226845,7.14,137.48,137.21,0.12502]
[1728569226846,27.87,137.46,137.21,0.12502]
[1728569227055,35.55502,137.45,137.31,27.87]
[1728569227348,7.56,137.44,137.33,27.99502]
[1728569227547,0.12502,137.45,137.35,27.87]
[1728569227850,7.56,137.44,137.35,27.87]
[1728569228242,0.12502,137.45,137.38,3.6429]
[1728569228844,0.12502,137.45,137.37,27.87]
[1728569229548,0.12502,137.45,137.35,27.87]
[1728569229947,3.6417,137.43,137.36,3.6433]
[1728569230251,7.56,137.43,137.35,27.87]
[1728569230447,7.56,137.43,137.37,27.87]
[1728569230640,0.12502,137.45,137.37,27.87]
[1728569230844,3.76642,137.45,137.39,3.6426]
[1728569231049,0.12502,137.45,137.37,27.87]
[1728569231258,0.12502,137.45,137.41,3.6421]
[1728569231552,0.12502,137.45,137.41,1.3427]
[1728569232853,3.76612,137.45,137.41,1.3427]
[1728569233149,3.76612,137.45,137.38,8.9566]
[1728569233150,0.12502,137.45,137.38,1.3966]
[1728569233458,3.6427,137.39,137.34,1.3427]
[1728569233941,7.56,137.4,137.34,1.3427]
[1728569234447,3.644,137.34,137.33,0.12502]
[1728569234758,7.56,137.4,137.33,0.12502]
[1728569235147,3.643,137.38,137.33,0.12502]
[1728569235448,7.96,137.39,137.33,0.12502]
[1728569235848,27.87,137.37,137.3,0.03]
[1728569236253,11.6036,137.36,137.3,0.03]
[1728569236452,0.12502,137.39,137.3,0.03]
[1728569236655,7.96,137.38,137.3,0.03]
[1728569237048,0.12502,137.39,137.3,0.03]
[1728569237249,3.6433,137.37,137.3,27.9]
[1728569237450,7.96,137.38,137.3,27.9]
[1728569237960,8.08502,137.39,137.3,27.9]
[1728569238456,8.08502,137.39,137.35,3.6435]
[1728569238764,8.08502,137.39,137.33,27.87]
[1728569239259,8.08502,137.39,137.3,27.9]
[1728569239853,0.12502,137.39,137.33,27.87]
[1728569240053,0.12502,137.39,137.34,1.4452]
[1728569240756,3.643,137.38,137.34,5.0891]
[1728569240958,0.12502,137.39,137.34,1.4452]
[1728569241155,0.12502,137.39,137.3,0.03]
[1728569241356,3.6433,137.37,137.33,3.6442]
[1728569241556,0.12502,137.39,137.31,27.87]
[1728569241858,0.12502,137.39,137.36,3.6434]
[1728569242050,0.12502,137.39,137.33,27.87]
[1728569242653,0.12502,137.39,137.33,35.83]
[1728569242959,0.12502,137.39,137.35,27.87]
[1728569243254,11.6014,137.44,137.36,2.7594]
[1728569243559,3.6414,137.44,137.4,3.6424]
[1728569244158,11.72632,137.45,137.41,3.6421]
[1728569244361,0.12502,137.45,137.37,37.1968]
[1728569244863,0.12502,137.45,137.42,3.6418]
[1728569245163,0.12502,137.45,137.37,37.1968]
[1728569245354,0.12502,137.45,137.43,3.6414]
[1728569245557,0.12502,137.45,137.39,27.87]
[1728569245960,0.12502,137.45,137.43,3.6415]
[1728569246158,0.12502,137.45,137.39,27.87]
[1728569246657,0.12502,137.45,137.43,3.6416]
[1728569246959,0.12502,137.45,137.37,37.1968]
[1728569247363,8.08502,137.45,137.37,1.3668]
[1728569247756,35.95502,137.45,137.38,3.6428]
[1728569247954,8.08502,137.45,137.37,1.3668]
[1728569248554,35.95502,137.45,137.37,1.3668]
[1728569248857,35.95502,137.45,137.32,27.87]
[1728569248858,27.87,137.43,137.32,27.87]
[1728569249059,27.87,137.43,137.33,1.54532]
[1728569249451,27.87,137.43,137.37,3.6432]
[1728569249765,7.96,137.43,137.35,27.87]
[1728569249966,0.12502,137.45,137.35,27.87]
[1728569250164,7.96,137.44,137.35,27.87]
[1728569250964,3.6426,137.4,137.36,3.6434]
[1728569251262,35.83,137.44,137.36,3.6434]
[1728569251461,35.83,137.44,137.33,1.54532]
[1728569251662,3.6426,137.4,137.33,1.54532]
[1728569252264,35.83,137.44,137.36,3.6434]
[1728569252852,3.6431,137.38,137.35,3.6437]
[1728569253064,35.83,137.44,137.35,3.6437]
[1728569253464,3.6428,137.39,137.36,3.6434]
[1728569253659,0.12502,137.45,137.33,1.54532]
[1728569253862,0.12502,137.45,137.36,27.87]
[1728569254060,3.6414,137.44,137.36,35.83]
[1728569254261,0.12502,137.45,137.36,35.83]
[1728569254564,3.6418,137.43,137.38,3.6428]
[1728569254766,3.6418,137.43,137.36,7.96]
[1728569254767,0.12502,137.45,137.36,7.96]
[1728569255169,3.6421,137.42,137.39,3.6425]
[1728569255362,8.08502,137.45,137.36,35.83]
[1728569255667,3.6419,137.42,137.39,3.6426]
[1728569255859,8.08502,137.45,137.39,3.6426]
[1728569256065,8.08502,137.45,137.36,35.83]
[1728569256377,8.08502,137.45,137.38,27.87]
[1728569256664,0.12502,137.45,137.38,27.87]
[1728569256870,0.12502,137.45,137.43,3.6414]
[1728569257365,0.12502,137.45,137.4,1.4631]
[1728569257669,0.12502,137.45,137.38,27.87]
[1728569257670,0.12502,137.45,137.36,35.83]
[1728569258175,3.6418,137.43,137.4,3.6423]
[1728569258364,0.12502,137.45,137.4,3.6423]
[1728569258561,3.6418,137.43,137.4,3.6423]
[1728569258767,0.12502,137.45,137.41,3.6421]
[1728569259068,0.12502,137.45,137.36,35.83]
[1728569259369,3.6417,137.43,137.36,35.83]
[1728569259761,3.6422,137.41,137.38,3.6428]
[1728569259956,0.12502,137.45,137.36,7.96]
[1728569260358,0.12502,137.45,137.39,3.6425]
[1728569260561,0.12502,137.45,137.36,7.96]
[1728569260968,0.12502,137.45,137.38,3.6428]
[1728569260969,3.6423,137.41,137.38,3.6428]
[1728569261660,3.6428,137.39,137.36,3.6433]
[1728569261873,7.96,137.43,137.34,4.2608]
[1728569262060,27.87,137.42,137.34,2.9275]
[1728569262272,29.2217,137.42,137.35,3.6435]
[1728569262860,3.6431,137.38,137.35,3.6435]
[1728569263065,29.2217,137.42,137.36,3.6434]
[1728569263374,1.3517,137.42,137.34,1.4631]
[1728569263575,1.3517,137.42,137.36,3.6433]
[1728569263877,1.3517,137.42,137.34,1.4631]
[1728569264167,1.3517,137.42,137.33,0.12502]
[1728569264563,27.87,137.39,137.33,0.12502]
[1728569264762,7.84,137.38,137.33,0.12502]
[1728569264968,7.84,137.39,137.33,0.12502]
[1728569265165,3.6435,137.36,137.33,0.12502]
[1728569265381,3.6435,137.36,137.33,3.76922]
[1728569265567,7.84,137.39,137.33,0.12502]
[1728569265868,7.84,137.39,137.35,3.6437]
[1728569266185,7.84,137.39,137.33,0.12502]
[1728569267370,3.6439,137.35,137.33,0.12502]
[1728569268477,3.6432,137.38,137.33,0.12502]
[1728569268775,39.4265772,137.39,137.33,0.12502]
[1728569269273,3.644,137.34,137.33,0.12502]
[1728569269475,39.4265772,137.39,137.33,0.12502]
[1728569269977,3.644,137.34,137.33,0.12502]
[1728569270375,7.84,137.39,137.33,0.12502]
[1728569270569,3.644,137.34,137.33,0.12502]
[1728569270970,3.6437,137.36,137.33,0.12502]
[1728569271170,11.4043268,137.39,137.33,0.12502]
[1728569271472,3.644,137.34,137.33,0.12502]
[1728569272074,7.84,137.41,137.34,3.644]
[1728569272264,7.84,137.41,137.33,27.99502]
[1728569272470,3.6434,137.37,137.33,27.99502]
[1728569272675,7.84,137.41,137.35,3.6436]
[1728569272981,7.84,137.42,137.35,3.6436]
[1728569273274,38.78809299,137.46,137.36,5.0937]
[1728569273462,7.96502,137.45,137.36,29.3202]
[1728569273662,3.6417,137.43,137.38,27.87]
[1728569273866,3.6417,137.43,137.4,3.6423]
[1728569274267,3.6423,137.41,137.38,27.87]
[1728569274670,7.96502,137.45,137.38,27.87]
[1728569274872,3.6425,137.4,137.38,27.87]
[1728569275578,3.642,137.42,137.39,3.6425]
[1728569276178,3.642,137.42,137.4,3.6424]
[1728569276476,3.642,137.42,137.38,27.87]
[1728569276672,3.642,137.42,137.39,3.6425]
[1728569276887,7.96502,137.45,137.39,3.6425]
[1728569276888,3.6422,137.41,137.39,3.6425]
[1728569277071,11.56078657,137.45,137.37,2.752]
[1728569277276,11.56078657,137.45,137.37,6.3951]
[1728569277476,11.56078657,137.45,137.37,2.752]
[1728569278080,3.6423,137.41,137.37,2.752]
[1728569278283,7.96502,137.45,137.37,2.752]
[1728569278580,11.53347142,137.45,137.37,2.752]
[1728569278985,11.53347142,137.45,137.37,6.395]
[1728569279183,11.53347142,137.45,137.37,2.752]
[1728569279380,7.96502,137.45,137.37,2.752]
[1728569279586,3.6423,137.41,137.38,3.6427]
[1728569280383,3.6422,137.41,137.39,3.6426]
[1728569280579,3.6422,137.41,137.37,2.752]
[1728569280877,3.6429,137.38,137.37,2.752]
[1728569281788,3.642,137.42,137.39,3.6425]
[1728569282179,7.96502,137.45,137.37,2.752]
[1728569282380,0.12502,137.45,137.38,27.87]
[1728569282575,0.12502,137.45,137.4,27.87]
[1728569282889,0.12502,137.45,137.44,3.6414]
[1728569283080,84.54114715,137.51,137.43,1.3858]
[1728569283285,0.12502,137.51,137.43,1.3858]
[1728569283487,0.12502,137.51,137.43,9.2258]
[1728569283890,0.12502,137.51,137.43,1.3858]
[1728569283891,27.87,137.5,137.43,1.3858]
[1728569284086,0.12502,137.51,137.39,0.12502]
[1728569284087,27.87,137.48,137.39,0.12502]
[1728569284407,0.12502,137.51,137.4,27.87]
[1728569284686,0.12502,137.51,137.39,0.12502]
[1728569284687,0.12502,137.51,137.42,27.87]
[1728569285387,7.96502,137.51,137.41,7.84]
[1728569285593,3.6409,137.46,137.43,3.6415]
[1728569285783,7.96502,137.51,137.4,35.74]
[1728569286493,27.87,137.5,137.4,35.74]
[1728569287087,3.6404,137.48,137.45,3.641]
[1728569287292,7.96502,137.51,137.43,27.87]
[1728569287591,7.96502,137.51,137.44,1.3284]